Cogmind - Beta 13 X1 @@@ ROGUE MODE // 2023.06.25 @ 00:13:09 Player: Runia Result: Destroyed by KE-WSS(R) with Subdweller Machine Gun Performance ------------- Evolutions (0) 0 Regions Visited (2) 400 Robots Destroyed (24) 120 Value Destroyed (634) 634 Prototype IDs (10) 200 Alien Tech Used (0) 0 Bonus (0) 0 TOTAL SCORE: 1354 Bonus ------- None Cogmind --------- Core Integrity 0/250 Matter 300/300 Energy 250/250 System Corruption 0% Temperature Cool (0) Movement Rolling (130) Ox2 Location -10/Subcaves Parts ------- > --- POWER (1) -------- Ion Engine > --- PROPULSION (2) --- Light Treads Compact Wheel > --- UTILITY (2) ------ Large Storage Unit > --- WEAPON (2) ------- Subdweller Beam Cannon Battle Rifle > --- INVENTORY (15) --- Light Treads Spiked Treads Wheel Structural Scanner Makeshift Kinetic Plating Power Bank Subdweller Laser Assault Rifle Assault Rifle Barrage Gun Grenade Launcher Grenade Launcher Mining Laser Makeshift Hammer Peak State ------------ > --- POWER ------------ Ion Engine > --- PROPULSION ------- Light Treads Subdweller Monowheel > --- UTILITY ---------- Large Storage Unit Seismic Detector > --- WEAPON ----------- Subdweller Laser Barrage Gun > --- INVENTORY -------- Ion Engine Light Treads Light Treads Spiked Treads Wheel Compact Wheel Structural Scanner Makeshift Kinetic Plating Subdweller Beam Cannon Assault Rifle Assault Rifle Light Assault Rifle Grenade Launcher Grenade Launcher Mining Laser [Rating: 13] Favorites ----------- Power Ion Engine Engine Ion Engine Propulsion Light Treads Treads Light Treads Leg Aluminum Leg Wheel Subdweller Monowheel Utility Large Storage Unit Device Seismic Detector Storage Large Storage Unit Weapon Small Laser Energy Gun Small Laser Energy Cannon Subdweller Beam Cannon Ballistic Gun Assault Rifle Launcher Grenade Launcher Special Weapon Mining Laser Impact Weapon Makeshift Hammer Build | -11 -10 -10 ------- Run | Jun Mat Sub Slots Evolved . | . . . Power . | . . . Propulsion . | . . . Utility . | . . . Weapon . | . . . Parts Attached 34 | 3 5 26 Power 2 | . 1 1 Engine 2 | . 1 1 Core . | . . . Reactor . | . . . Propulsion 6 | 2 . 4 Treads 3 | 2 . 1 Leg . | . . . Wheel 3 | . . 3 Hover . | . . . Flight . | . . . Utility 2 | . 2 . Device 1 | . 1 . Storage 1 | . 1 . Processor . | . . . Hackware . | . . . Protection . | . . . Artifact . | . . . Weapon 24 | 1 2 21 Energy Gun 3 | . . 3 Energy Cannon 4 | . . 4 Ballistic Gun 6 | 1 1 4 Ballistic Cannon . | . . . Launcher 6 | . 1 5 Special Weapon 4 | . . 4 Impact Weapon 1 | . . 1 Slashing Weapon . | . . . Piercing Weapon . | . . . Special Melee Weapon . | . . . Unidentified Prototypes . | . . . Parts Lost 6 | . 1 5 Power 2 | . 1 1 Propulsion 2 | . . 2 Utility 1 | . . 1 Weapon 1 | . . 1 Highest Loss Streak 3 | . 1 3 To Critical Strikes . | . . . Average Slot Usage (%) 91 | . 87 92 Engine 13 | . 13 13 Treads 19 | . 28 17 Wheel 8 | . . 10 Device 6 | . 2 7 Storage 14 | . 14 14 Energy Gun 8 | . 14 6 Energy Cannon 1 | . . 1 Ballistic Gun 9 | . 14 8 Launcher 3 | . . 5 Special Weapon 2 | . . 2 Impact Weapon 2 | . . 3 Naked Turns . | . . . Heaviest Build 36 | 11 29 36 Greatest Support 40 | 40 40 40 Greatest Overweight (x) 2 | . . 2 Average Overweight (x) . | . . . Largest Inventory Capacity 15 | 8 15 15 Average Capacity 14 | 8 14 15 Most Carried 15 | 6 15 15 Average Carried 13 | 5 11 14 Final Capacity 15 | 8 15 15 Final Carried 15 | 4 15 14 Class Distribution -------------------- 100% | Mutant Dominant Class ---------------- Mutant | -10/Materials Mutant | -10/Subcaves Resources | -11 -10 -10 ----------- Run | Jun Mat Sub Matter Collected 860 | 200 171 489 Remotely . | . . . Salvage Created 712 | . 297 415 Parts 44 | . 17 27 Haulers Intercepted 2 | . 2 . Recyclers Shooed . | . . . Parts Field Recycled . | . . . Retrieved Matter . | . . . Parts Self-Destructed 15 | . . 15 Prevented . | . . . Kills | -11 -10 -10 ------- Run | Jun Mat Sub Combat Hostiles Destroyed 20 | . 4 16 Melee 1 | . . 1 Guns 8 | . 2 6 Cannons 1 | . . 1 AOE 10 | . 2 8 Classes Destroyed 7 | . 4 3 Worker 1 | . 1 . Tunneler 1 | . 1 . Hauler 2 | . 2 . Swarmer 6 | . . 6 Grunt 4 | . 4 . Artisan 2 | . . 2 Subdweller 10 | . . 10 Best Kill Streak 4 | . 4 3 Combat Bots Only 3 | . 2 3 Max Kills in Single Turn 2 | . 2 2 Gunslinging . | . . . Exploded 2 | . 2 2 Melee 1 | . . 1 Uniques/NPCs Destroyed . | . . . Combat | -11 -10 -10 -------- Run | Jun Mat Sub Damage Taken 1151 | . 170 981 Core 271 | . 34 237 Absorbed by Shields . | . . . Core Remaining (%) 100 | 100 . . Volleys Fired 91 | . 28 63 Largest 2 | . 2 2 Hottest 120 | . 60 120 Shots Fired 146 | . 54 92 Gun 98 | . 52 46 Cannon 18 | . . 18 Launcher 18 | . 2 16 Special 12 | . . 12 Kinetic 52 | . 26 26 Thermal 76 | . 26 50 Explosive 18 | . 2 16 Electromagnetic . | . . . Robot Hit Streak 9 | . 8 9 Robot Miss Streak 4 | . 4 3 Penetration Max . | . . . Secondary Targets . | . . . Shots Hit Robots 84 | . 37 47 Core Hits 42 | . 16 26 Critical Kills 2 | . . 2 Critical Parts Destroyed . | . . . Critical Strikes 2 | . . 2 Meltdown 1 | . . 1 Destroy 1 | . . 1 Melee Attacks 24 | . . 24 Impact 24 | . . 24 Slashing . | . . . Piercing . | . . . Sneak Attacks . | . . . Combat Hostiles . | . . . Follow-up Attacks . | . . . Damage Inflicted 2209 | . 620 1589 Guns 979 | . 459 520 Cannons 215 | . . 215 Explosions 906 | . 161 745 Melee 109 | . . 109 Ramming . | . . . Kinetic 550 | . 245 305 Thermal 644 | . 214 430 Explosive 906 | . 161 745 Electromagnetic . | . . . Impact 109 | . . 109 Slashing . | . . . Piercing . | . . . Highest Corruption . | . . . Average Corruption . | . . . Corruption Purged . | . . . Corruption Blocked . | . . . Overload Shots . | . . . Overflow Damage . | . . . Projectiles . | . . . Explosions . | . . . Melee . | . . . Knockbacks . | . . . Impact . | . . . Kinetic . | . . . Secondary . | . . . Self-Inflicted Damage 3 | . . 3 Shots 1 | . . 1 Rammed . | . . . Targets Rammed . | . . . Kicked . | . . . Crushed . | . . . Highest Temperature 48 | . 21 48 Average Temperature 14 | . 13 14 Received Heat Transfer 282 | . 96 186 Siege Activations . | . . . Robots Corrupted . | . . . Combat Hostiles . | . . . Parts Fried . | . . . Impact Corruptions . | . . . Robots Melted 1 | . . 1 Combat Hostiles . | . . . Parts Melted 4 | . 1 3 Heat Transferred 1071 | . 475 596 Parts Sabotaged . | . . . Parts Stolen . | . . . Parts Stripped . | . . . Power Chain Reactions . | . . . Missiles Intercepted . | . . . Alert | -11 -10 -10 ------- Run | Jun Mat Sub Peak Influence 73 | . 73 . Initial . | . . . Average 42 | . 43 . Maximum Alert Level . | . . . Low Security (%) 100 | 100 100 . Level 1 . | . . . Level 2 . | . . . Level 3 . | . . . Level 4 . | . . . Level 5 . | . . . High Security . | . . . Max Security . | . . . Squads Dispatched . | . . . Investigation . | . . . Extermination . | . . . Reinforcement . | . . . Assault . | . . . Garrison . | . . . Intercept . | . . . Searches Triggered . | . . . Construction Impeded . | . . . Haulers Reinforced . | . . . Active Scanning Responses . | . . . Cargo Convoy Interrupts . | . . . Stealth | -11 -10 -10 --------- Run | Jun Mat Sub Distress Signals . | . . . Communications Jammed . | . . . Distress Signals . | . . . Times Spotted 23 | . 7 16 Peak Tracking Total 2 | . 2 2 Tactical Retreats 3 | . . 3 Traps | -11 -10 -10 ------- Run | Jun Mat Sub Traps Triggered 1 | . . 1 Indirectly . | . . . Trap Hack Attempts . | . . . Triggered . | . . . Disarmed . | . . . Reprogrammed . | . . . Reused . | . . . Traps Extracted . | . . . Installed . | . . . Triggered . | . . . Machines | -11 -10 -10 ---------- Run | Jun Mat Sub Machines Disabled 1 | . . 1 Max in Single Turn 1 | . . 1 Machines Repaired . | . . . Machines Sabotaged . | . . . Overloaded Fab Kills . | . . . Hacking | -11 -10 -10 --------- Run | Jun Mat Sub Machines Accessed 3 | . 2 1 Terminals 2 | . 2 . Fabricators . | . . . Repair Stations . | . . . Recycling Units . | . . . Scanalyzers . | . . . Garrison Access . | . . . Total Hacks 16 | . 7 9 Successful 13 | . 4 9 Failed 3 | . 3 . Catastrophic 1 | . 1 . Database Lockouts . | . . . Manual 4 | . 4 . Terminals 7 | . 7 . Fabricators . | . . . Repair Stations . | . . . Recycling Units . | . . . Scanalyzers . | . . . Garrison Access . | . . . Terminal Hacks 13 | . 4 9 Record 8 | . . 8 Emergency Access Points 1 | . 1 . Locate Traps 1 | . 1 . Hauler Manifests 1 | . 1 . Zone Layout 1 | . 1 . Derelict Proto ID Bank 1 | . . 1 Fabricator Hacks . | . . . Repair Station Hacks . | . . . Recycling Unit Hacks . | . . . Scanalyzer . | . . . Garrison Access Hacks . | . . . Unauthorized Hacks . | . . . Terminals . | . . . Fabricators . | . . . Repair Stations . | . . . Recycling Units . | . . . Scanalyzers . | . . . Garrison Access . | . . . Data Cores Recovered . | . . . Used . | . . . Hacking Detections 2 | . 2 . Full Trace Events . | . . . Feedback Events . | . . . Feedback Blocked . | . . . Robot Schematics Acquired . | . . . Robots Built . | . . . Authchips . | . . . Time . | . . . Total Robot Build Rating . | . . . Part Schematics Acquired . | . . . Parts Built . | . . . Authchips . | . . . Time . | . . . Total Part Build Rating . | . . . Parts Repaired . | . . . Time . | . . . Parts Recycled . | . . . Recycled Matter . | . . . Retrieved Matter . | . . . Retrieved Components . | . . . Parts Scanalyzed . | . . . Part Schematics Acquired . | . . . Parts Damaged . | . . . Bothacking | -11 -10 -10 ------------ Run | Jun Mat Sub Used RIF Installer . | . . . Robots Hacked . | . . . Non-combat . | . . . Combat . | . . . Robot Hacks Applied . | . . . Relay Couplers Released . | . . . Fabnet Peak Effective % . | . . . Robots Rewired . | . . . Allies Hacked . | . . . Hacks Repelled . | . . . Allies | -11 -10 -10 -------- Run | Jun Mat Sub Total Allies . | . . . Largest Group . | . . . Highest-Rated Group . | . . . Highest-Rated Ally . | . . . Total Orders . | . . . Ally Attacks . | . . . Total Damage . | . . . Kills . | . . . Allies Corrupted . | . . . Allies Melted . | . . . Intel | -11 -10 -10 ------- Run | Jun Mat Sub Robot Analysis Total . | . . . Derelict Logs Recovered 2 | . . 2 Drone Launches . | . . . Drone Recoveries . | . . . Exploration | -11 -10 -10 ------------- Run | Jun Mat Sub Turns Passed 2677 | 5 576 2096 Spaces Moved 1696 | 1 285 1410 Core . | . . . Treads 575 | 1 285 289 Legs . | . . . Wheels 1121 | . . 1121 Hover . | . . . Flight . | . . . Fastest Speed 115 | 160 160 115 Average Speed 132 | 160 160 126 Slowest Speed 240 | 160 160 240 Overloaded Moves . | . . . Propulsion Burnouts . | . . . Robots Hopped . | . . . Cave-ins Triggered . | . . . Exploration Rate (%) 36 | 2 41 66 Regions Visited 2 Branch Regions 1 Pre-discovered Areas 3 | . . 3 Known Exits Taken . | . . . Unknown Exits Taken 2 | 1 1 . Scrap Searched 4 | . . 4 Spaces Dug 22 | . . 22 Terrain Destroyed 121 | . 9 112 Melee 5 | . . 5 Projectile 8 | . . 8 AOE 108 | . 9 99 Terrain Rammed . | . . . Walls Destroyed . | . . . Machines Disabled . | . . . Actions | -11 -10 -10 --------- Run | Jun Mat Sub Total 1933 | 6 350 1577 Wait 53 | . 20 33 Move 1694 | . 284 1410 Hop . | . . . Pick Up 22 | . 12 10 Fast Attach 4 | . 2 2 Attach 9 | 3 1 5 Detach 1 | 1 . . Swap 21 | . 2 19 Drop 14 | 2 1 11 Fire 91 | . 28 63 Melee 24 | . . 24 Ram . | . . . Kick . | . . . Crush . | . . . Escape Stasis . | . . . Rewire . | . . . Trap . | . . . Miscellaneous . | . . . Route ------- -11/Junkyard -10/Materials (discovered 2 exits: [*Min] / *Sub) -10/Subcaves (discovered 2 exits: [*Mat] / [*Rec]) History --------- Turn | Location | Event 6 | -11/Junkyard | Discovered new exit (range 0) 6 | -11/Junkyard | Entered Materials 251 | -10/Materials | Discovered new exit (range 13) 307 | -10/Materials | Build established: Mutant 404 | -10/Materials | Discovered new exit (range 7) 582 | -10/Materials | Entered Subcaves 1202 | -10/Subcaves | Learned location of Storage (-8) 1217 | -10/Subcaves | Discovered new exit (range 3) 1290 | -10/Subcaves | A swath of the cavern ceiling suddenly collapsed 1398 | -10/Subcaves | Disturbed a concealed Subdweller 1418 | -10/Subcaves | Core integrity fell below 50% 1566 | -10/Subcaves | Discovered new exit (range 10) 1711 | -10/Subcaves | Core integrity fell below 20% 1735 | -10/Subcaves | Lost 3 parts (1p1n1u) 2023 | -10/Subcaves | Learned location of Zion (-6) 2023 | -10/Subcaves | Met a Zionite searching for "candidates" 2150 | -10/Subcaves | Shifting Twisted Machinery released Sub. Monowheel 2157 | -10/Subcaves | Shifting Twisted Machinery released Sub. Monowheel 2225 | -10/Subcaves | A swath of the cavern ceiling suddenly collapsed 2441 | -10/Subcaves | Visited 4L-MR0's lab 2452 | -10/Subcaves | Found Power Bank 2678 | -10/Subcaves | Destroyed by KE-WSS(R) with Subdweller Machine Gun Last Messages --------------- on a vague rumor about ending the world in a hellish blaze at the flip of a switch. Also why would anyone want that. >>Record "Matter Cannon" I haven't gotten around to building the cannon yet, but they said the idea is to have a cannon with 'ridiculously high matter cost' but a corresondingly ridiculous high damage, and the ability to slot in the best high-capacity matter pods they can find for more efficient transfer while firing. >>Record "Uberlauncher" I hear [REDACTED] exploded during the installation process. I did warn them to fully install it before trying to fire, and something tells me that's where things went wrong. Still I'm glad they didn't listen, that way I'm not culpable for whatever they would've done with it. If we're lucky even some of the others got blasted, too. 02448_ Testing Chamber breached. 02452_ Acquired Power Bank. 02455_ 4L-MR0 mumbles: "Who knows where that last prototype ended up, probably tossed aside somewhere as if it were useless junk..." 02660_ UK-375(R) destroyed. 02666_ Acquired 35 matter. Map ----- +----------------------------------------------------+ | "#""""""## #??####" ""##???#" ""#??# ## | | #####""" #??# " "" ##??# ""##??## # | | #???##"## #### "" #?## "##????### | | #????##" ## "" "##?# ""#####???## | | ????# "### """ #### "### ##???## # | | ????# ##?# ## """ ## # "" "####### ### | | ????##???# ## """" ""# ""# # #? | | ?????????## ###" """ ""### " ##? | | ??????????# ### #### ##### # # # #?? | | ??????????# #?## ### ###?#" * # ####?? | | ?????????## #??# ## ###"" " % ##???? | | ?????????# ##??# ## ####"# ##! #???? | | ?????????# ##???# #??#### & [ ##???? | | ?????????# ##???## #???#"" & #????? | | ?????????# ##???## ## #??# #????? | | ?????????# #????# ##? #??# #????? | | ?????????# #???## ##?? #??# ### ##????? | | ?????????# ##???# #???#?# #?# ##????? | | ?????????## ##????## *! #?????## #?# ##????? | | ??????????###?????## =%= #??????## ##?# #??##? | | ??????????????##??# * ##???????###??## ## #? | | ##??????????## ##?# ! "##?????????????## #? | | ##??####??? #?# &%="#??######??##### #? | | #### #?## #?#### ##### #??# ## | | ## ### ###### ## #?## # | | #?# # @ #?## ### | | * = #### " ### #??### | | & = # ## # ## R% #????? | | ## ! %## ""###" = ##????? | | ###### ##"""#?#"" ## #?????? | | ####???## # &###" ## "" ### ##?????? | | ??????## # """ ## "" #### ##??????? | | ??????# [* """#### ""#??## #???????? | | #?????# | &=* "" #??## ""???# #??????? | | #?????## ## # ##""##???### ""??#### #?????? | | ???????# ### ###?###??????## ??????# ####?????? | | ???????##### ??????????????# ??????###????????? | | ??????????# % #????????????????????????????????? | | ?????????# ????????????????????????????????? | | ????????#% #???????????????????????????????? | | ????????# ####???????????????????????????????? | | ????????# %???????????????????????????????????? | | ????????# % ???????????????????????????????????? | | ????????# % ???????????????????????????????????? | | ????????######???????????????????????????????????? | | ?????????????????????????????????????????????????? | | ?????????????????????????????????????????????????? | | ?????????????????????????????????????????????????? | | ?????????????????????????????????????????????????? | | ?????????????????????????????????????????????????? | +----------------------------------------------------+ Best States ------------- Heat Dissipation 25 Energy Generation 10 Energy Capacity 250 Matter Stores 300 Matter Capacity 300 Sight Range 16 Terrain Scan Density 10 Evasion (%) 40 Recoil Reduction 2 Item Schematics ----------------- None Robot Schematics ------------------ None Fabricated ------------ Nothing Alien Tech Used ----------------- None Achievements -------------- None Challenges ------------ None Game ------ Seed HeatLegProjector Manual? 0 Play Time 00:20:33 Cumulative 791.7 hours Start 2023.06.24 @ 23:50:39 End 2023.06.25 @ 00:13:09 Sessions 1 Manual Loads 0 Difficulty Rogue Special Mode None Game No. 690 Rogue 690 Adventurer 0 Explorer 0 Win Type - Total 37 Types 14/6/6/1/1/1/6/1/1 Lore% 91 Gallery% 95 Achievement% 81 Wizard Run 0 Options --------- ASCII 0 Keyboard 0 Movement Mouse Keybinds 1 Fullscreen 2 Font 24/Smallcaps Map View 76x50 Tactical HUD 1 Map Filters NONE Filters NONE Steam 1 RUN: 5695b0fc-e9c9-4c58-a034-ab8075c1e67e